bitfinex-derivatives/quotes_SOLF0:USTF0_20241127
["timestamp","ask_amount","ask_price","bid_price","bid_amount"]
[1732689506359,2.1591,231.63,231.57,9.03869489]
[1732689506657,2.08,231.67,231.61,6.87899489]
[1732689506855,2.08,231.67,231.53,1.2617]
[1732689506856,2.08,231.67,231.63,6.87899489]
[1732689507560,2.1588,231.66,231.63,6.87899489]
[1732689508256,2.1588,231.66,231.62,2.1591]
[1732689508759,2.159,231.65,231.59,6.87899489]
[1732689509251,2.159,231.64,231.59,9.03849489]
[1732689509455,6.87899489,231.65,231.57,6.87899489]
[1732689509857,2.1592,231.62,231.57,9.03859489]
[1732689510355,2.1591,231.63,231.58,2.1595]
[1732689510556,2.08,231.67,231.59,6.87899489]
[1732689510557,8.95899489,231.67,231.59,6.87899489]
[1732689510754,2.08,231.67,231.61,6.87899489]
[1732689510954,2.08,231.67,231.61,9.03829489]
[1732689510955,2.1589,231.66,231.61,9.03829489]
[1732689511364,2.1589,231.66,231.62,2.1592]
[1732689511663,2.08,231.67,231.62,2.1592]
[1732689511870,2.08,231.67,231.61,6.87899489]
[1732689512161,2.08,231.67,231.63,2.1591]
[1732689512560,2.08,231.67,231.63,6.87899489]
[1732689513154,2.08,231.67,231.64,2.159]
[1732689513359,2.08,231.67,231.63,6.87899489]
[1732689513865,2.08,231.67,231.64,2.159]
[1732689514064,2.08,231.67,231.63,6.87899489]
[1732689515261,2.08,231.67,231.65,2.1589]
[1732689516864,2.5884,231.76,231.58,1.3005]
[1732689517064,2.1583,231.72,231.67,9.03769489]
[1732689517458,2.1583,231.72,231.67,6.87899489]
[1732689517664,2.08,231.73,231.67,6.87899489]
[1732689517665,2.08,231.73,231.68,2.1586]
[1732689517970,8.95899489,231.73,231.64,6.87899489]
[1732689518262,2.08,231.73,231.66,6.87899489]
[1732689519364,2.1583,231.72,231.67,2.1586]
[1732689519965,16.34403009,231.77,231.61,1.2934]
[1732689519966,2.158,231.75,231.71,6.87899489]
[1732689520281,2.08,231.83,231.74,6.87899489]
[1732689520472,2.08,231.83,231.76,6.87899489]
[1732689520861,3.8179,231.88,231.78,6.87899489]
[1732689520862,2.08,231.85,231.78,6.87899489]
[1732689521071,2.08,231.85,231.81,2.1573]
[1732689521269,2.08,231.85,231.8,6.87899489]
[1732689521471,2.08,231.85,231.78,6.87899489]
[1732689521767,2.1573,231.83,231.78,6.87899489]
[1732689522071,2.08,231.85,231.78,6.87899489]
[1732689522266,2.08,231.85,231.76,10.72773775]
[1732689523267,2.08,231.85,231.79,2.1576]
[1732689523472,2.08,231.85,231.76,10.72773775]
[1732689523972,2.08,231.85,231.79,2.1575]
[1732689524369,2.5526,231.96,231.82,10.72773775]
[1732689524370,3.3775,231.96,231.82,10.72773775]
[1732689524665,2.1564,231.92,231.8,12.80773775]
[1732689524865,2.08,231.95,231.8,12.80773775]
[1732689525066,2.08,231.95,231.85,2.157]
[1732689525466,2.08,231.95,231.8,2.08]
[1732689525660,2.08,231.95,231.81,10.72773775]
[1732689526970,10.72773775,231.94,231.76,2.08]
[1732689527163,13.25413775,231.94,231.76,12.80773775]
[1732689527566,2.1569,231.87,231.79,2.1576]
[1732689527870,13.25413775,231.94,231.79,2.1576]
[1732689527871,2.08,231.88,231.79,2.1576]
[1732689528261,2.157,231.86,231.79,2.1576]
[1732689528571,2.08,231.88,231.81,2.1574]
[1732689528867,2.08,231.88,231.79,10.72773775]
[1732689529070,2.08,231.9,231.84,2.1571]
[1732689529271,2.08,231.9,231.82,10.72773775]
[1732689530171,2.08,231.9,231.81,2.1574]
[1732689530563,2.1568,231.89,231.81,2.1574]
[1732689530764,2.08,231.9,231.81,2.1574]
[1732689531466,2.1571,231.85,231.79,12.88523775]
[1732689532077,2.1569,231.87,231.79,12.88523775]
[1732689532266,2.08,231.9,231.79,12.88523775]
[1732689532669,2.157,231.86,231.8,2.1575]
[1732689533571,2.08,231.9,231.79,10.72773775]
[1732689534169,4.2366,231.9,231.84,2.1571]
[1732689534370,2.08,231.9,231.82,10.72773775]
[1732689534570,2.08,231.9,231.83,1.3109]
[1732689534775,2.08,231.9,231.83,4.7477]
[1732689536375,2.1568,231.88,231.83,4.7477]
[1732689536674,2.08,231.9,231.83,4.7477]
[1732689536879,4.2367,231.9,231.83,4.7477]
[1732689537076,2.08,231.9,231.83,4.7477]
[1732689537573,4.2366,231.9,231.84,2.1571]
[1732689537776,2.08,231.9,231.83,2.5905]
[1732689538372,4.2366,231.9,231.85,2.157]
[1732689538679,4.2366,231.9,231.83,2.5905]
[1732689538680,2.08,231.9,231.83,2.5905]
[1732689539476,2.08,231.9,231.83,1.3109]
[1732689539876,2.08,231.9,231.8,1.2673]
[1732689540284,2.1569,231.87,231.8,1.2673]
[1732689540477,2.08,231.9,231.8,1.2673]
[1732689542081,2.157,231.86,231.8,3.4247]
[1732689543088,2.157,231.86,231.8,1.2673]
[1732689543382,2.08,231.9,231.8,1.2673]
[1732689543874,2.157,231.86,231.8,1.2673]
[1732689544275,2.157,231.86,231.84,6.86326662]
[1732689545476,2.1571,231.85,231.84,6.86326662]
[1732689545877,2.08,231.9,231.84,6.86326662]
[1732689546273,2.1568,231.89,231.84,6.86326662]
[1732689546478,2.08,231.9,231.84,6.86326662]
[1732689547682,2.157,231.86,231.84,6.86326662]
[1732689550983,2.08,231.9,231.8,1.2673]
[1732689551184,6.86326662,231.87,231.58,5.87108618]
[1732689551388,6.86326662,231.81,231.69,3.8273]
[1732689551584,6.86326662,231.81,231.73,6.86326662]
[1732689551585,2.158,231.75,231.73,6.86326662]
[1732689551986,2.08,231.8,231.73,6.86326662]
[1732689553288,2.1577,231.79,231.76,6.86326662]
[1732689553892,2.1577,231.78,231.72,2.1583]
[1732689554098,2.08,231.8,231.74,6.86326662]
[1732689554287,2.08,231.8,231.72,9.02156662]
[1732689555291,2.08,231.8,231.74,6.86326662]
[1732689556294,2.1577,231.78,231.74,6.86326662]
[1732689556493,2.08,231.8,231.74,6.86326662]
[1732689556892,2.1577,231.78,231.73,2.1582]
[1732689557100,6.86326662,231.79,231.7,2.1584]
[1732689557299,6.86326662,231.79,231.71,6.86326662]
[1732689557808,6.86326662,231.79,231.71,9.02156662]
[1732689558110,2.158,231.76,231.71,9.02156662]
[1732689558305,8.94326662,231.75,231.65,1.2364]
[1732689558512,2.08,231.74,231.66,6.86326662]
[1732689558808,2.1585,231.7,231.66,6.86326662]
[1732689559202,2.08,231.74,231.66,6.86326662]
[1732689559406,2.08,231.74,231.68,6.86326662]
[1732689560206,2.1582,231.73,231.68,6.86326662]
[1732689560400,2.1582,231.73,231.68,9.02186662]
[1732689561005,2.1583,231.72,231.68,6.86326662]
[1732689561601,2.08,231.74,231.68,6.86326662]
[1732689561802,2.1582,231.73,231.68,9.02186662]
[1732689563607,2.08,231.74,231.68,6.86326662]
[1732689563813,2.08,231.74,231.71,2.1583]
[1732689564013,2.08,231.74,231.72,6.86326662]
[1732689565008,2.08,231.74,231.65,1.2364]
[1732689565305,2.1586,231.69,231.6,1.3034]
[1732689565504,2.1586,231.69,231.64,6.86326662]
[1732689565907,2.1586,231.69,231.66,6.86326662]
[1732689566708,1.328,231.78,231.68,6.86326662]
[1732689566910,2.08,231.79,231.74,6.86326662]
[1732689567205,4.2377,231.79,231.74,6.86326662]
[1732689568311,4.2377,231.79,231.73,2.1582]
[1732689569313,4.2977,231.79,231.71,10.73284898]
[1732689569614,2.14,231.81,231.74,10.73284898]
[1732689570117,2.14,231.81,231.77,2.1578]
[1732689570717,2.14,231.86,231.8,2.1575]
[1732689570920,1.2381,231.92,231.77,10.73284898]
[1732689571112,2.1573,231.83,231.74,10.73284898]
[1732689572212,10.73284898,231.83,231.69,3.7492]
[1732689572410,10.73284898,231.81,231.69,3.7492]
[1732689572821,10.73284898,231.78,231.61,10.73284898]
[1732689573018,10.73284898,231.75,231.61,10.73284898]
[1732689573319,2.14,231.74,231.61,11.99644898]
[1732689573519,2.14,231.74,231.61,13.21124898]
[1732689574114,2.14,231.74,231.64,10.73284898]
[1732689574519,10.73284898,231.78,231.64,10.73284898]
[1732689574714,10.73284898,231.78,231.69,2.1585]
[1732689574715,2.1581,231.75,231.69,2.1585]
[1732689574913,2.1581,231.75,231.64,10.73284898]
[1732689575115,2.14,231.77,231.67,10.73284898]
[1732689576215,2.1579,231.76,231.68,2.1586]
[1732689576415,2.6094,231.83,231.67,10.73284898]
[1732689576614,2.14,231.82,231.7,10.73284898]
[1732689576808,2.14,231.82,231.74,2.158]
[1732689577012,2.14,231.82,231.71,2.5826]
[1732689577210,2.14,231.82,231.71,3.8095]
[1732689578010,2.14,231.82,231.73,2.1582]
[1732689578011,2.1575,231.8,231.73,2.1582]
[1732689578215,2.14,231.82,231.71,3.8095]
[1732689579320,2.1577,231.78,231.71,5.9678]
[1732689580410,2.14,231.82,231.71,3.8095]
[1732689580616,10.73284898,231.81,231.71,2.5576]
[1732689580817,10.73284898,231.81,231.64,12.87284898]
[1732689581217,10.73284898,231.81,231.67,2.1587]
[1732689581218,2.1581,231.74,231.67,2.1587]
[1732689581516,2.14,231.74,231.64,10.73284898]
[1732689585423,2.1583,231.72,231.66,2.1588]
[1732689586519,2.14,231.74,231.64,10.73284898]
[1732689586722,2.1582,231.73,231.67,2.1587]
[1732689587524,2.14,231.74,231.64,10.73284898]
[1732689587725,2.14,231.74,231.68,2.1586]
[1732689588119,2.14,231.74,231.69,2.1585]
[1732689589328,2.14,231.74,231.61,3.8844]
[1732689589631,2.14,231.74,231.65,10.73284898]
[1732689591123,2.14,231.74,231.69,2.1585]
[1732689591124,4.2981,231.74,231.69,2.1585]
[1732689591323,4.2981,231.74,231.65,10.73284898]
[1732689592329,4.2981,231.74,231.68,2.1586]
[1732689594729,2.1582,231.73,231.68,2.1586]
[1732689595121,2.14,231.74,231.65,10.73284898]
[1732689596533,2.1582,231.73,231.67,2.1586]
[1732689596831,2.14,231.74,231.67,2.1586]
[1732689597434,2.1582,231.73,231.67,2.1586]
[1732689597632,2.1582,231.73,231.68,2.1586]
[1732689598227,2.14,231.74,231.65,10.73284898]
[1732689598427,2.14,231.74,231.69,2.1585]
[1732689598727,2.14,231.74,231.61,3.8844]
[1732689598923,2.1583,231.72,231.62,11.81276665]
[1732689599232,2.1583,231.72,231.63,1.07991767]
[1732689599425,2.1583,231.72,231.67,2.1587]
[1732689600224,2.14,231.74,231.62,10.73284898]
[1732689600530,2.14,231.74,231.61,3.8844]
[1732689602034,2.14,231.74,231.62,10.73284898]
[1732689602240,2.1577,231.78,231.72,2.1582]
[1732689602433,2.32,231.8,231.71,10.73284898]
[1732689602634,2.32,231.82,231.72,1.2868]
[1732689603033,2.1576,231.8,231.74,2.1581]
[1732689604539,2.32,231.82,231.72,1.2868]
[1732689605037,2.1575,231.81,231.75,2.1579]
[1732689605427,10.73284898,231.87,231.72,1.2868]
[1732689605626,2.1573,231.82,231.76,2.1579]
[1732689606035,2.1573,231.82,231.72,3.9308]
[1732689606236,2.1573,231.82,231.74,2.158]
[1732689606435,2.1573,231.82,231.72,3.9308]
[1732689607235,2.1576,231.79,231.72,3.9308]
[1732689607439,4.4776,231.79,231.72,3.9308]
[1732689607931,4.4776,231.79,231.73,2.1582]
[1732689608333,4.4776,231.79,231.74,2.1581]
[1732689608334,2.32,231.79,231.74,2.1581]
[1732689610138,4.4776,231.79,231.72,3.9308]
[1732689611038,2.32,231.79,231.65,10.73284898]
[1732689611535,2.1581,231.74,231.67,2.1586]
[1732689611933,2.32,231.75,231.65,10.73284898]
[1732689612138,2.32,231.74,231.65,10.73284898]
[1732689612338,10.73284898,231.78,231.65,10.73284898]
[1732689612339,2.32,231.73,231.65,10.73284898]
[1732689612540,2.32,231.72,231.67,2.1587]
[1732689612739,2.32,231.73,231.65,10.73284898]
[1732689613335,4.4782,231.73,231.65,12.89164898]
[1732689613533,2.32,231.73,231.65,2.1588]
[1732689614239,2.1584,231.71,231.65,2.1588]
[1732689614941,2.32,231.73,231.66,2.1588]
[1732689615131,2.1583,231.72,231.66,2.1588]
[1732689616842,4.4783,231.73,231.62,12.06734898]
[1732689617034,10.73284898,231.79,231.65,10.73284898]
[1732689617238,2.26,231.78,231.65,10.73284898]
[1732689617744,2.1578,231.78,231.65,10.73284898]
[1732689618147,2.26,231.77,231.66,1.07984846]
[1732689618442,2.26,231.77,231.71,2.1583]
[1732689618645,2.26,231.77,231.65,10.73284898]
[1732689618846,2.26,231.77,231.66,1.07982688]
[1732689619036,4.4178,231.77,231.67,1.07982688]
[1732689619243,4.4178,231.77,231.65,10.73284898]
[1732689619547,4.4178,231.77,231.66,1.07986513]
[1732689619745,4.4178,231.77,231.65,10.73284898]
[1732689620047,4.4178,231.77,231.72,2.1583]
[1732689620951,2.26,231.77,231.72,2.1583]
[1732689621338,2.26,231.77,231.7,2.1584]
[1732689621536,2.26,231.77,231.68,10.73284898]
[1732689621936,2.26,231.77,231.72,2.1582]
[1732689622143,2.26,231.77,231.68,10.73284898]
[1732689622948,2.26,231.8,231.74,2.158]
[1732689623145,2.26,231.8,231.71,10.73284898]
[1732689623643,2.26,231.8,231.76,2.1579]
[1732689624947,2.1569,231.87,231.81,2.1574]
[1732689625139,12.96,232.0,231.81,2.1574]
[1732689625140,2.26,231.86,231.81,2.1574]
[1732689625650,2.1568,231.88,231.77,10.73284898]
[1732689625854,2.26,231.87,231.77,10.73284898]
[1732689627043,12.05854898,231.95,231.8,10.73284898]
[1732689627044,2.1565,231.91,231.8,10.73284898]
[1732689627245,2.26,231.9,231.81,1.2423]
[1732689627453,2.26,231.91,231.84,2.1571]
[1732689627743,2.26,231.91,231.81,1.2423]
[1732689628151,2.26,231.91,231.73,2.4732]
[1732689628152,2.26,231.91,231.74,12.99284898]
[1732689628345,10.73284898,231.89,231.74,14.23514898]
[1732689628544,2.1576,231.79,231.74,1.2423]
[1732689628751,2.1576,231.79,231.73,3.3766]
[1732689629044,2.26,231.8,231.73,1.2185]
[1732689629643,10.73284898,231.86,231.73,1.2185]
[1732689629849,2.26,231.84,231.79,2.1576]
[1732689630249,2.26,231.84,231.82,2.1573]
[1732689630554,2.26,231.88,231.77,10.73284898]
[1732689630749,2.26,231.88,231.78,1.3142]
[1732689630947,2.26,231.88,231.78,2.559]
[1732689631250,4.4168,231.88,231.82,2.1573]
[1732689631746,4.4168,231.88,231.78,2.559]
[1732689631747,2.26,231.88,231.78,2.559]
[1732689632451,2.26,231.88,231.83,2.1572]
[1732689632752,2.1569,231.87,231.78,2.559]
[1732689633347,2.26,231.88,231.78,2.559]
[1732689633348,2.1571,231.85,231.78,2.559]
[1732689633647,2.26,231.88,231.78,2.559]
[1732689634041,2.26,231.88,231.79,2.1575]
[1732689634042,2.1571,231.85,231.79,2.1575]
[1732689634552,2.1572,231.84,231.79,2.1575]
[1732689634749,2.1572,231.84,231.78,1.3142]
[1732689635053,2.26,231.88,231.78,1.3142]
[1732689635250,2.26,231.88,231.81,2.1574]
[1732689636051,1.2275,231.94,231.78,1.3142]
[1732689636253,2.26,231.93,231.8,10.73284898]
[1732689636650,2.1564,231.92,231.86,2.157]
[1732689637554,2.26,231.93,231.8,10.73284898]
[1732689638455,2.26,231.93,231.88,2.1568]
[1732689638654,2.26,231.94,231.83,10.73284898]
[1732689638848,2.26,231.94,231.84,2.5937]
[1732689639056,2.26,231.94,231.88,2.1568]
[1732689641350,2.26,231.94,231.84,2.5937]
[1732689641650,10.73284898,231.92,231.78,1.3142]
[1732689642355,12.99284898,231.94,231.78,1.3142]
[1732689642754,2.1567,231.89,231.83,2.1572]
[1732689642954,2.1567,231.89,231.78,1.3142]
[1732689643460,2.1568,231.88,231.81,2.1574]
[1732689644360,2.1568,231.88,231.82,2.1573]
[1732689645260,2.1565,231.91,231.85,2.157]
[1732689645558,12.99284898,231.94,231.78,1.3142]
[1732689645752,2.1567,231.89,231.83,2.1572]
[1732689645949,2.26,231.94,231.8,10.73284898]
[1732689646354,2.1566,231.9,231.84,2.1571]
[1732689646548,2.26,231.94,231.78,1.3142]
[1732689646752,10.73284898,231.92,231.78,1.3142]
[1732689647055,2.1571,231.86,231.79,2.1575]
[1732689647252,2.32,231.87,231.78,1.3142]
[1732689647459,2.32,231.91,231.8,10.73284898]
[1732689647650,2.32,231.93,231.8,10.73284898]
[1732689647852,11.95504898,231.97,231.8,10.73284898]
[1732689648057,2.32,231.93,231.8,10.73284898]
[1732689649056,4.4763,231.93,231.83,2.1572]
[1732689649255,4.4763,231.93,231.8,10.73284898]
[1732689649460,10.73284898,231.9,231.78,1.3142]
[1732689649659,2.32,231.93,231.78,1.3142]
[1732689649959,10.73284898,231.87,231.78,1.3142]
[1732689650155,2.32,231.86,231.78,1.3142]
[1732689650852,10.73284898,231.84,231.74,1.322]
[1732689651159,2.1574,231.81,231.75,2.1579]
[1732689651855,2.1573,231.82,231.75,2.1579]
[1732689652456,10.73284898,231.84,231.74,1.322]
[1732689652656,10.73284898,231.84,231.73,2.1581]
[1732689652850,10.73284898,231.84,231.7,1.2663]
[1732689653062,2.1577,231.78,231.7,1.2663]
[1732689653358,2.32,231.8,231.7,1.2663]
[1732689653554,4.4776,231.79,231.72,2.1583]
[1732689653948,4.4776,231.79,231.7,1.2663]
[1732689654355,2.32,231.79,231.73,2.1582]
[1732689655553,2.32,231.79,231.74,2.1581]
[1732689655950,2.32,231.79,231.7,3.4247]
[1732689656262,2.32,231.79,231.67,10.73284898]
[1732689657163,4.4776,231.79,231.73,2.1581]
[1732689657961,2.32,231.79,231.7,10.73284898]
[1732689658662,2.32,231.79,231.74,2.1581]
[1732689662062,2.32,231.79,231.72,2.1582]
[1732689662965,2.1577,231.78,231.7,10.73284898]
[1732689663168,2.32,231.79,231.7,2.1584]
[1732689664267,2.1578,231.77,231.71,2.1583]
[1732689664768,2.1578,231.77,231.67,10.73284898]
[1732689665265,2.1578,231.77,231.71,2.1584]
[1732689667464,2.158,231.75,231.68,2.1586]
[1732689668464,2.1579,231.76,231.68,2.1586]
[1732689668766,13.05284898,231.79,231.68,2.1586]
[1732689669265,13.05284898,231.79,231.66,3.3811]
[1732689669764,2.1583,231.72,231.66,2.1588]
[1732689669970,2.32,231.71,231.65,2.1589]
[1732689670267,2.32,231.7,231.65,2.1589]
[1732689670464,2.32,231.69,231.65,2.1589]
[1732689670659,2.32,231.68,231.65,2.1589]
[1732689671964,2.32,231.68,231.62,2.1591]
[1732689672168,2.32,231.68,231.58,1.328]
[1732689672573,2.159,231.64,231.58,1.328]
[1732689672868,2.32,231.68,231.58,1.328]
[1732689673067,2.159,231.65,231.58,3.4876]
[1732689673474,2.32,231.68,231.58,1.328]
[1732689673773,2.1588,231.66,231.6,2.1594]
[1732689674576,2.32,231.68,231.6,2.1594]
[1732689674773,4.4787,231.68,231.61,2.1593]
[1732689675168,2.32,231.68,231.61,2.1593]
[1732689675475,2.1587,231.67,231.61,2.1593]
[1732689676273,2.32,231.68,231.59,2.1594]
[1732689676869,2.32,231.68,231.52,1.2178]
[1732689677069,10.73284898,231.64,231.49,1.2819]
[1732689677272,10.73284898,231.61,231.49,1.2819]
[1732689677573,10.73284898,231.58,231.44,10.73284898]
[1732689677771,2.1599,231.54,231.48,2.1604]
[1732689678275,2.1599,231.54,231.46,2.1606]
[1732689678568,2.1599,231.54,231.44,10.73284898]
[1732689679474,2.4,231.57,231.44,10.73284898]
[1732689679668,2.1601,231.53,231.43,1.2819]
[1732689680275,2.1599,231.55,231.43,1.2819]
[1732689680469,2.4,231.57,231.44,10.73284898]
[1732689680975,2.1599,231.55,231.48,2.1605]
[1732689681170,2.4,231.57,231.44,10.73284898]
[1732689681372,1.2504,231.63,231.47,10.73284898]
[1732689681678,2.4,231.62,231.47,10.73284898]
[1732689681873,2.1593,231.61,231.53,2.16]
[1732689682275,10.73284898,231.64,231.53,2.16]
[1732689682478,2.1593,231.61,231.5,10.73284898]
[1732689683578,2.4,231.63,231.5,10.73284898]
[1732689683782,2.1592,231.62,231.51,1.2968]
[1732689684377,10.73284898,231.64,231.57,2.1597]
[1732689684378,2.4,231.61,231.57,2.1597]
[1732689685383,2.4,231.61,231.53,10.73284898]
[1732689685777,1.244,231.71,231.58,2.1595]
[1732689685778,2.4,231.65,231.58,2.1595]
[1732689685980,2.4,231.68,231.56,10.73284898]
[1732689686281,2.4,231.68,231.59,10.73284898]
[1732689686478,2.4,231.68,231.6,1.2454]
[1732689686984,2.4,231.68,231.63,2.1591]
[1732689687380,2.4,231.68,231.6,1.2454]
[1732689688685,2.4,231.68,231.64,2.159]
[1732689689180,2.5871,231.77,231.6,1.2454]
[1732689689382,2.4,231.76,231.65,10.73284898]
[1732689689885,2.4,231.76,231.68,2.1586]
[1732689690082,2.4,231.76,231.65,10.73284898]
[1732689690886,2.4,231.76,231.7,2.1584]
[1732689691080,2.4,231.76,231.65,10.73284898]
[1732689691476,2.4,231.76,231.71,2.1583]
[1732689691680,10.73284898,231.81,231.65,13.13284898]
[1732689691681,2.4,231.79,231.65,13.13284898]
[1732689694389,2.1579,231.76,231.69,2.1585]
[1732689694579,2.4,231.79,231.65,13.13284898]
[1732689694783,2.4,231.8,231.68,10.73284898]
[1732689695284,10.73284898,231.87,231.71,10.73284898]
[1732689695485,2.4,231.86,231.77,2.1578]
[1732689695782,2.4,231.85,231.72,3.7616]
[1732689695990,4.5571,231.85,231.72,3.7616]
[1732689696380,10.73284898,231.81,231.72,2.5202]
[1732689696886,10.73284898,231.81,231.7,2.1584]
[1732689697087,10.73284898,231.81,231.66,1.2414]
[1732689697088,10.73284898,231.81,231.66,3.8111]
[1732689697288,2.1578,231.78,231.71,2.1583]
[1732689697486,2.4,231.77,231.71,2.1583]
[1732689698687,2.4,231.77,231.7,2.1584]
[1732689698888,4.5578,231.77,231.7,2.1584]
[1732689699088,2.4,231.77,231.66,3.8111]
[1732689699788,2.4,231.77,231.73,2.1582]
[1732689699987,2.4,231.77,231.68,10.73284898]
[1732689700188,2.4,231.77,231.66,3.8111]
[1732689700489,2.4,231.77,231.67,10.73284898]
[1732689701388,10.73284898,231.82,231.67,10.73284898]
[1732689701389,2.4,231.81,231.67,10.73284898]
[1732689701591,2.4,231.81,231.7,10.73284898]
[1732689702186,4.5574,231.81,231.74,2.1581]
[1732689702993,4.5574,231.81,231.75,2.158]
[1732689703486,4.5574,231.81,231.7,10.73284898]
[1732689703487,2.4,231.81,231.76,2.1579]
[1732689703690,10.73284898,231.85,231.7,10.73284898]
[1732689703890,2.4,231.82,231.7,10.73284898]
[1732689704093,4.5572,231.84,231.77,2.1578]
[1732689704287,4.5572,231.84,231.7,10.73284898]
[1732689704288,2.4,231.84,231.7,10.73284898]
[1732689706587,2.4,231.84,231.75,2.158]
[1732689706588,2.1574,231.81,231.75,2.158]
[1732689707686,2.1573,231.82,231.75,2.158]
[1732689709695,2.1577,231.79,231.73,2.1581]
[1732689709893,10.73284898,231.82,231.67,10.73284898]
[1732689710093,2.42,231.81,231.67,10.73284898]
[1732689710293,2.1578,231.77,231.67,10.73284898]
[1732689711203,2.1577,231.79,231.67,10.73284898]
[1732689711597,2.1577,231.79,231.71,2.1583]
[1732689712196,2.42,231.81,231.7,10.73284898]
[1732689712398,4.5775,231.81,231.7,10.73284898]
[1732689713397,4.5775,231.81,231.74,2.1581]
[1732689715998,4.5775,231.81,231.7,2.1584]
[1732689715999,2.1578,231.77,231.7,2.1584]
[1732689716807,2.1576,231.79,231.71,6.87162602]
[1732689717304,6.87162602,231.8,231.71,6.87162602]
[1732689717496,2.1577,231.78,231.71,6.87162602]
[1732689718205,2.1577,231.78,231.71,9.02992602]
[1732689718898,2.1578,231.77,231.71,9.02992602]
[1732689719403,6.87162602,231.8,231.72,2.1583]
[1732689719404,2.1577,231.78,231.72,2.1583]
[1732689721397,2.1576,231.79,231.73,2.1581]
[1732689721805,6.87162602,231.8,231.71,6.87162602]
[1732689722205,4.5775,231.81,231.73,6.87162602]
[1732689722807,2.1575,231.8,231.75,2.158]
[1732689723306,2.1575,231.8,231.73,6.87162602]
[1732689725305,2.42,231.81,231.73,6.87162602]
[1732689725606,2.42,231.81,231.75,6.87162602]
[1732689726109,2.42,231.81,231.75,9.02952602]
[1732689726311,2.42,231.81,231.73,6.87162602]
[1732689726911,2.42,231.81,231.76,2.1579]
[1732689727405,9.02922602,231.8,231.74,2.158]
[1732689727707,6.87162602,231.78,231.68,6.87162602]
[1732689728104,2.1579,231.77,231.71,2.1583]
[1732689728606,2.1582,231.73,231.67,2.1586]
[1732689728806,6.87162602,231.7,231.57,1.72773807]
[1732689729009,6.87162602,231.7,231.61,6.87162602]
[1732689729402,2.1586,231.68,231.61,9.03082602]
[1732689729710,2.1586,231.68,231.61,6.87162602]
[1732689729906,9.03012602,231.7,231.62,2.1592]
[1732689730315,2.1585,231.7,231.62,2.1592]
[1732689730517,2.1585,231.7,231.63,2.1591]
[1732689731132,2.1585,231.7,231.58,10.74396185]
[1732689731729,2.1585,231.7,231.64,2.159]
[1732689732232,2.42,231.73,231.64,2.159]
[1732689732635,2.42,231.73,231.62,2.1591]
[1732689732838,2.1588,231.67,231.57,3.9199]
[1732689733033,4.5788,231.67,231.57,3.9199]
[1732689733239,13.16396185,231.67,231.57,2.1597]
[1732689733829,13.16396185,231.67,231.52,13.16396185]
[1732689734036,2.159,231.64,231.53,1.08035355]
[1732689734251,13.16396185,231.67,231.52,14.41006185]
[1732689734547,2.1589,231.65,231.53,1.08035476]
[1732689734748,2.1589,231.65,231.52,14.41006185]
[1732689734947,2.1589,231.65,231.53,1.08035401]
[1732689735150,2.1589,231.65,231.58,2.1596]
[1732689735645,4.5788,231.67,231.59,2.1595]
[1732689735846,2.42,231.67,231.59,2.1595]
[1732689736555,2.32,231.68,231.61,2.1593]
[1732689736853,2.32,231.68,231.55,10.74396185]
[1732689737543,2.1588,231.66,231.6,2.1594]
[1732689738245,2.1587,231.67,231.6,2.1594]